fUSD/lending_fUSD_20260508
["ID","MTS","AMOUNT","RATE_DAILY","PERIOD"]
[421852842,1778227838000,-500.0,0.00013049,2]
[421852837,1778227838000,-500.0,0.00013049,2]
[421852839,1778227838000,-500.0,0.00013049,2]
[421852835,1778227838000,-500.0,0.00013049,2]
[421852855,1778227838000,-420.0,0.00013172,2]
[421852850,1778227838000,-5406.67536061,0.0001305,2]
[421852852,1778227838000,-250.0,0.00013089,2]
[421852853,1778227838000,-211.35448212,0.00013089,2]
[421852851,1778227838000,-255.0,0.00013079,2]
[421852849,1778227838000,-500.0,0.00013049,2]
[421852854,1778227838000,-2238.6261302,0.00013122,2]
[421852846,1778227838000,-500.0,0.00013049,2]
[421852847,1778227838000,-500.0,0.00013049,2]
[421852845,1778227838000,-500.0,0.00013049,2]
[421852841,1778227838000,-500.0,0.00013049,2]
[421852833,1778227838000,-500.0,0.00013049,2]
[421852836,1778227838000,-500.0,0.00013049,2]
[421852848,1778227838000,-500.0,0.00013049,2]
[421852883,1778227839000,-500.0,0.0001394,2]
[421852889,1778227839000,-166.66,0.0001411,2]
[421852888,1778227839000,-2238.6261302,0.00014011,2]
[421852885,1778227839000,-166.66,0.00013973,2]
[421852890,1778227839000,-200.0,0.000142,5]
[421852887,1778227839000,-250.0,0.00014,2]
[421852886,1778227839000,-12014.61704422,0.0001399,2]
[421852891,1778227839000,-166.66,0.00014247,2]
[421852897,1778227839000,-3626.0,0.00014301,2]
[421852902,1778227839000,-1000.0,0.00014488,2]
[421852895,1778227839000,-500.0,0.000143,5]
[421852894,1778227839000,-516.98,0.000143,2]
[421852901,1778227839000,-1000.0,0.00014488,2]
[421852896,1778227839000,-864.019,0.00014301,2]
[421852900,1778227839000,-587.0,0.0001446,2]
[421852899,1778227839000,-700.0,0.000144,5]
[421852904,1778227839000,-2351.0,0.00014518,2]
[421852881,1778227839000,-2238.6261302,0.00013789,2]
[421852898,1778227839000,-166.66,0.00014384,2]
[421852884,1778227839000,-500.0,0.0001394,2]
[421852858,1778227839000,-500.0,0.00013488,2]
[421852892,1778227839000,-250.0,0.0001425,2]
[421852857,1778227839000,-2238.6261302,0.00013344,2]
[421852907,1778227839000,-206.681,0.000147,2]
[421852856,1778227839000,-1680.0,0.00013198,2]
[421852859,1778227839000,-234.66951995,0.00013488,2]
[421852862,1778227839000,-151.52260831,0.00013488,2]
[421852865,1778227839000,-203.39430873,0.00013488,2]
[421852867,1778227839000,-162.57939543,0.00013488,2]
[421852871,1778227839000,-279.99629778,0.00013488,2]
[421852873,1778227839000,-295.73985248,0.00013488,2]
[421852869,1778227839000,-171.65004053,0.00013488,2]
[421852872,1778227839000,-168.25248826,0.00013488,2]
[421852874,1778227839000,-150.0,0.00013488,2]
[421852876,1778227839000,-502.21907443,0.00013513,2]
[421852875,1778227839000,-157.52174221,0.00013488,2]
[421852879,1778227839000,-166.66,0.00013699,2]
[421852877,1778227839000,-2238.6261302,0.00013567,2]
[421852878,1778227839000,-200.0,0.00013699,2]
[421852880,1778227839000,-2500.0,0.00013699,2]
[421852882,1778227839000,-166.66,0.00013836,2]
[421852893,1778227839000,-433.0,0.00014255,2]
[421852905,1778227839000,-1200.0,0.000146,5]
[421852924,1778227839000,-588.4357577,0.000149,2]
[421852910,1778227839000,-200.0,0.000148,5]
[421852936,1778227839000,-500.0,0.00014999,2]
[421852930,1778227839000,-5547.68,0.0001499,2]
[421852933,1778227839000,-386.28739071,0.0001499,2]
[421852935,1778227839000,-500.0,0.00014999,2]
[421852939,1778227839000,-150.0,0.00014999,2]
[421852937,1778227839000,-500.0,0.00014999,2]
[421852932,1778227839000,-386.28739071,0.0001499,2]
[421852934,1778227839000,-2617.79688832,0.00014992,2]
[421852940,1778227839000,-307.78412308,0.00014999,2]
[421852942,1778227839000,-407.95063688,0.00014999,2]
[421852941,1778227839000,-500.0,0.00014999,2]
[421852949,1778227839000,-7448425.7794131,0.00015,2]
[421852945,1778227839000,-666.0,0.00014999,2]
[421852948,1778227839000,-666.0,0.00014999,2]
[421852943,1778227839000,-500.0,0.00014999,2]
[421852947,1778227839000,-300.0,0.00014999,2]
[421852944,1778227839000,-300.0,0.00014999,2]
[421852946,1778227839000,-300.0,0.00014999,2]
[421852950,1778227839000,-2458.7058386,0.00015,2]
[421852931,1778227839000,-386.28739071,0.0001499,2]
[421852927,1778227839000,-167.12971911,0.000149,2]
[421852929,1778227839000,-157.24131601,0.00014986,2]
[421852938,1778227839000,-379.64659033,0.00014999,2]
[421852912,1778227839000,-5547.68,0.00014818,2]
[421852906,1778227839000,-1153.531,0.000147,2]
[421852909,1778227839000,-2326.79060516,0.000148,2]
[421852908,1778227839000,-200.0,0.000147,5]
[421852911,1778227839000,-2326.79060516,0.00014814,2]
[421852913,1778227839000,-2326.79060516,0.00014829,2]
[421852915,1778227839000,-2326.79060516,0.00014857,2]
[421852914,1778227839000,-2326.79060516,0.00014843,2]
[421852925,1778227839000,-2326.79060516,0.000149,2]
[421852903,1778227839000,-1000.0,0.000145,5]
[421852919,1778227839000,-9017.67937665,0.000149,2]
[421852920,1778227839000,-200.0,0.000149,5]
[421852918,1778227839000,-199.70780814,0.000149,2]
[421852921,1778227839000,-122683.6105,0.000149,2]
[421852916,1778227839000,-2326.79060516,0.00014871,2]
[421852923,1778227839000,-341.89786355,0.000149,2]
[421852922,1778227839000,-945.59711446,0.000149,2]
[421852926,1778227839000,-216.30442264,0.000149,2]
[421852928,1778227839000,-500.0,0.00014973,2]
[421852917,1778227839000,-2326.79060516,0.00014886,2]
[421852951,1778227840000,-879.77229291,0.00014233,2]
[421852952,1778227840000,-1358.85383729,0.00014233,2]
[421852955,1778227840000,-11022.6279,0.00015,2]
[421852954,1778227840000,-2137896.00585061,0.00015,2]
[421852953,1778227840000,-610.79966273,0.00015,2]
[421853179,1778227853000,-10000.01,0.00015,2]
[421853185,1778227908000,-1319.0,0.00014456,2]
[421853184,1778227908000,-417.0,0.00014301,2]
[421853186,1778227909000,-919.6261302,0.00014456,2]
[421853187,1778227909000,-667.05773982,0.00015,2]
[421853189,1778227909000,-3588.06584454,0.00015,2]
[421853188,1778227909000,-2500.0,0.0001389,2]
[421853190,1778227909000,-1312.9623853,0.00015,2]
[421853191,1778227909000,-4740.80000006,0.00015,2]
[421853192,1778227909000,-580.6376147,0.00015,2]
[421853195,1778227909000,-500.0,0.00013049,2]
[421853193,1778227909000,-500.0,0.00013049,2]
[421853194,1778227909000,-500.0,0.00013049,2]
[421853198,1778227909000,-5761.3838698,0.00015,2]
[421853197,1778227909000,-2238.6261302,0.00014678,2]
[421853196,1778227909000,-500.0,0.00013049,2]
[421853205,1778227909000,-1679.20076888,0.000149,2]
[421853199,1778227909000,-500.0,0.00013049,2]
[421853200,1778227909000,-500.0,0.00013049,2]
[421853202,1778227909000,-417.06369435,0.00014354,2]
[421853204,1778227909000,-2238.6261302,0.000149,2]
[421853201,1778227909000,-600.0,0.00013049,2]
[421853203,1778227909000,-1699.58678316,0.00014354,2]
[421853206,1778227909000,-2365.53262341,0.00015,2]
[421853208,1778227910000,-500.0,0.00014999,2]
[421853210,1778227910000,-500.0,0.00014999,2]
[421853209,1778227910000,-500.0,0.00014999,2]
[421853207,1778227910000,-500.0,0.00014991,2]
[421853213,1778227910000,-500.0,0.00014999,2]
[421853214,1778227910000,-6500.01,0.00015,2]
[421853211,1778227910000,-500.0,0.00014999,2]
[421853212,1778227910000,-500.0,0.00014999,2]
[421853215,1778227910000,-10000.01,0.000119,2]
[421853216,1778227911000,-10000.01,0.000119,2]
[421853217,1778227923000,329.110147,0.00024225,120]
[421853220,1778227966000,164.555073,0.00022835,120]
[421853222,1778227973000,225.006114,0.00022835,120]
[421853241,1778228011000,234.174527,0.00022148,120]
[421853242,1778228048000,449.27303,7.945e-05,2]
[421853243,1778228102000,195.0,0.0002354,120]
[421853246,1778228326000,165.8096814,0.0001,2]
[421853248,1778228339000,2893.09982024,0.0003013,120]
[421853249,1778228385000,172.50240335,0.0001,2]
[421853251,1778228446000,175.84876433,0.0001,2]
[421853253,1778228601000,-165.63,0.00010607,2]
[421853254,1778228601000,-35.85290719,0.00011253,2]
[421853261,1778228853000,202.8,0.00030137,120]
[421853262,1778229020000,9460.82539176,0.00030137,120]
[421853274,1778229032000,-343.29292514,0.000118,2]
[421853265,1778229032000,-405.21062676,0.000117,2]
[421853267,1778229032000,-3048.36314706,0.000117,2]
[421853271,1778229032000,-214.14709281,0.000118,2]
[421853268,1778229032000,-300.0,0.00011799,2]
[421853273,1778229032000,-6866.51696013,0.000118,2]
[421853269,1778229032000,-1200.0,0.00011799,2]
[421853272,1778229032000,-4164.7728,0.000118,2]
[421853266,1778229032000,-868.52832,0.000117,2]
[421853275,1778229032000,-592.2336,0.000118,2]
[421853276,1778229032000,-3366.73601876,0.000118,2]
[421853270,1778229032000,-150.0,0.00011799,2]
[421853279,1778229033000,-254.14013485,0.000118,2]
[421853278,1778229033000,-7192.69953326,0.000118,2]
[421853277,1778229033000,-692.36348956,0.000118,2]
[421853280,1778229033000,-369.98931999,0.000118,2]
[421853282,1778229033000,-1015.04698736,0.000118,2]
[421853281,1778229033000,-1870.88949691,0.000118,2]
[421853285,1778229033000,-927.55529614,0.000118,2]
[421853284,1778229033000,-13978.86332071,0.000118,2]
[421853283,1778229033000,-333.2607817,0.000118,2]
[421853337,1778229038000,-2362.31370754,0.000118,2]
[421853375,1778229040000,-994.44688486,0.000118,2]
[421853374,1778229040000,-66037.62597721,0.000118,2]
[421853373,1778229040000,-4838.64592795,0.000118,2]
[421853426,1778229047000,-886.18,0.00013338,2]
[421853456,1778229047000,-166.66,0.0001411,2]
[421853441,1778229047000,-6471.73,0.00013699,2]
[421853457,1778229047000,-200.0,0.00014223,2]
[421853449,1778229047000,-200.0,0.00013849,2]
[421853447,1778229047000,-166.66,0.00013836,2]
[421853453,1778229047000,-166.66,0.00013973,2]
[421853443,1778229047000,-164.29,0.00013748,2]
[421853455,1778229047000,-886.18,0.00014005,2]
[421853445,1778229047000,-157.07,0.00013794,2]
[421853461,1778229047000,-199.68,0.000143,2]
[421853458,1778229047000,-587.0,0.00014225,2]
[421853439,1778229047000,-972.25,0.00013699,2]
[421853432,1778229047000,-200.0,0.00013675,2]
[421853460,1778229047000,-2351.0,0.00014277,2]
[421853462,1778229047000,-886.18,0.00014338,2]
[421853464,1778229047000,-166.66,0.00014384,2]
[421853468,1778229047000,-500.0,0.00014624,2]
[421853466,1778229047000,-2000.0,0.00014478,2]
[421853467,1778229047000,-2000.0,0.00014513,2]
[421853470,1778229047000,-450.0,0.00014624,2]
[421853469,1778229047000,-500.0,0.00014624,2]
[421853451,1778229047000,-379.65,0.00013924,2]
[421853436,1778229047000,-166.66,0.00013699,2]
[421853434,1778229047000,-2157.14243826,0.00013675,2]
[421853430,1778229047000,-886.18,0.00013671,2]
[421853391,1778229047000,-27261.11116309,0.000118,2]
[421853394,1778229047000,-255.0,0.00012873,2]
[421853393,1778229047000,-6973.5319,0.000119,2]
[421853392,1778229047000,-503.40643898,0.00011873,2]
[421853395,1778229047000,-420.0,0.00012955,2]
[421853471,1778229047000,-500.0,0.00014624,2]
[421853409,1778229047000,-151.0,0.00013127,2]
[421853396,1778229047000,-250.0,0.00012979,2]
[421853398,1778229047000,-200.0,0.00013127,2]
[421853411,1778229047000,-151.0,0.00013127,2]
[421853413,1778229047000,-151.0,0.00013127,2]
[421853390,1778229047000,-310.00717484,0.000118,2]
[421853405,1778229047000,-500.0,0.00013127,2]
[421853401,1778229047000,-151.0,0.00013127,2]
[421853403,1778229047000,-179.78958851,0.00013127,2]
[421853407,1778229047000,-151.0,0.00013127,2]
[421853421,1778229047000,-1169.06,0.00013275,2]
[421853419,1778229047000,-158.22,0.00013259,2]
[421853417,1778229047000,-2080.17592889,0.00013127,2]
[421853415,1778229047000,-196.0,0.00013127,2]
[421853428,1778229047000,-1056.25,0.00013444,2]
[421853423,1778229047000,-150.0,0.00013297,2]
[421853399,1778229047000,-151.0,0.00013127,2]
[421853465,1778229047000,-501.10276449,0.00014428,2]
[421853397,1778229047000,-1680.0,0.00012979,2]
[421853463,1778229047000,-173.23,0.00014381,2]
[421853515,1778229047000,-605.0,0.00014725,2]
[421853518,1778229047000,-500.0,0.00014725,2]
[421853525,1778229047000,-605.0,0.00014725,2]
[421853523,1778229047000,-500.0,0.00014725,2]
[421853522,1778229047000,-500.0,0.00014725,2]
[421853524,1778229047000,-500.0,0.00014725,2]
[421853521,1778229047000,-500.0,0.00014725,2]
[421853519,1778229047000,-500.0,0.00014725,2]
[421853520,1778229047000,-500.0,0.00014725,2]
[421853527,1778229047000,-500.0,0.00014725,2]
[421853526,1778229047000,-500.0,0.00014725,2]
[421853530,1778229047000,-500.0,0.00014725,2]
[421853528,1778229047000,-500.0,0.00014725,2]
[421853529,1778229047000,-500.0,0.00014725,2]
[421853533,1778229047000,-605.0,0.00014725,2]
[421853532,1778229047000,-524.00754556,0.00014725,2]
[421853531,1778229047000,-500.0,0.00014725,2]
[421853534,1778229047000,-605.0,0.00014725,2]
[421853536,1778229047000,-200.0,0.00014771,2]
[421853535,1778229047000,-614.23585438,0.00014725,2]
[421853538,1778229047000,-1652.51669458,0.00014873,2]
[421853537,1778229047000,-3626.0,0.0001487,2]
[421853459,1778229047000,-166.66,0.00014247,2]
[421853516,1778229047000,-605.0,0.00014725,2]
[421853517,1778229047000,-605.0,0.00014725,2]
[421853400,1778229047000,-151.0,0.00013127,2]
[421853512,1778229047000,-605.0,0.00014725,2]
[421853479,1778229047000,-178.22350046,0.00014625,2]
[421853483,1778229047000,-605.0,0.00014725,2]
[421853473,1778229047000,-500.0,0.00014624,2]
[421853482,1778229047000,-605.0,0.00014725,2]
[421853486,1778229047000,-605.0,0.00014725,2]
[421853474,1778229047000,-500.0,0.00014624,2]
[421853488,1778229047000,-605.0,0.00014725,2]
[421853480,1778229047000,-886.18,0.00014672,2]
[421853476,1778229047000,-500.0,0.00014624,2]
[421853475,1778229047000,-500.0,0.00014624,2]
[421853477,1778229047000,-500.0,0.00014624,2]
[421853472,1778229047000,-500.0,0.00014624,2]
[421853514,1778229047000,-605.0,0.00014725,2]
[421853492,1778229047000,-605.0,0.00014725,2]
[421853478,1778229047000,-6794.9409,0.00014625,2]
[421853508,1778229047000,-605.0,0.00014725,2]
[421853502,1778229047000,-605.0,0.00014725,2]
[421853498,1778229047000,-605.0,0.00014725,2]
[421853510,1778229047000,-605.0,0.00014725,2]
[421853506,1778229047000,-605.0,0.00014725,2]
[421853496,1778229047000,-605.0,0.00014725,2]
[421853499,1778229047000,-605.0,0.00014725,2]
[421853490,1778229047000,-605.0,0.00014725,2]
[421853504,1778229047000,-605.0,0.00014725,2]
[421853494,1778229047000,-605.0,0.00014725,2]
[421853548,1778229048000,-500.0,0.0001496,2]
[421853539,1778229048000,-199.70780812,0.000149,2]
[421853541,1778229048000,-1119.46717924,0.000149,2]
[421853545,1778229048000,-500.0,0.0001496,2]
[421853542,1778229048000,-214.75786009,0.000149,2]
[421853546,1778229048000,-500.0,0.0001496,2]
[421853540,1778229048000,-2500.0,0.000149,2]
[421853544,1778229048000,-185.0,0.00014926,2]
[421853543,1778229048000,-839.06599152,0.000149,2]
[421853550,1778229048000,-500.0,0.0001496,2]
[421853547,1778229048000,-215.44888616,0.0001496,2]
[421853554,1778229048000,-21809.9577742,0.00014961,2]
[421853556,1778229048000,-46278.16617712,0.00014961,2]
[421853552,1778229048000,-558.45619599,0.0001496,2]
[421853549,1778229048000,-500.0,0.0001496,2]
[421853553,1778229048000,-5824.3399701,0.00014961,2]
[421853557,1778229048000,-7271.42913759,0.00014961,2]
[421853555,1778229048000,-5323.905816,0.00014961,2]
[421853551,1778229048000,-626.55262812,0.0001496,2]
[421853568,1778229343000,-204.0,0.00011385,2]
[421853570,1778229343000,-3596.0,0.000117,2]
[421853569,1778229343000,-1200.0,0.00011699,2]
[421853571,1778229345000,-5000.0,0.000117,2]
[421853572,1778229348000,-5000.0,0.000117,2]
[421853573,1778229349000,-5000.0,0.000117,2]
[421853574,1778229350000,-5000.0,0.000117,2]
[421853575,1778229352000,-5000.0,0.000117,2]
[421853576,1778229353000,-5000.0,0.000117,2]
[421853577,1778229354000,-5000.0,0.000117,2]
[421853579,1778229362000,-4700.0,0.000117,2]
[421853578,1778229362000,-300.0,0.00011699,2]
[421853580,1778229412000,-5000.0,0.000117,2]
[421853581,1778229429000,-3613.0,0.000117,2]
[421853582,1778229469000,-617.0829728,0.0001169,2]
[421853583,1778229469000,-4382.9170272,0.000117,2]
[421853584,1778229470000,-5000.0,0.000117,2]
[421853585,1778229472000,-5000.0,0.000117,2]
[421853586,1778229473000,-5000.0,0.000117,2]
[421853587,1778229474000,-5000.0,0.000117,2]
[421853588,1778229475000,-5000.0,0.000117,2]
[421853589,1778229476000,-5000.0,0.000117,2]
[421853590,1778229478000,-5000.0,0.000117,2]
[421853591,1778229479000,-5000.0,0.000117,2]
[421853593,1778229480000,-3141.6221272,0.000117,2]
[421853592,1778229480000,-1858.3778728,0.000117,2]
[421853596,1778229502000,-2434.8306,0.000117,2]
[421853597,1778229502000,-1243.3066272,0.000117,2]
[421853594,1778229502000,-300.0,0.00011699,2]
[421853595,1778229502000,-1021.8627728,0.000117,2]
[421853598,1778229503000,-5000.0,0.000117,2]
[421853599,1778229505000,-5000.0,0.000117,2]
[421853600,1778229506000,-5000.0,0.000117,2]
[421853601,1778229507000,-5000.0,0.000117,2]
[421853602,1778229508000,-5000.0,0.000117,2]
[421853603,1778229509000,-3143.7636728,0.000117,2]
[421853604,1778229509000,-1856.2363272,0.000117,2]
[421853605,1778229510000,-973.9340728,0.000117,2]
[421853607,1778229579000,-1359.75970905,0.00012869,2]
[421853612,1778230172000,-505.51639618,0.00011868,2]
[421853611,1778230172000,-397.3906806,0.00011868,2]
[421853610,1778230172000,-300.0,0.00011867,2]
[421853622,1778230231000,-257.8752,0.00011868,2]
[421853623,1778230231000,-655.85593076,0.00011868,2]
[421853621,1778230231000,-2424.07895351,0.00011868,2]
[421853620,1778230231000,-511.31863751,0.00011868,2]
[421853618,1778230231000,-1200.0,0.00011867,2]
[421853619,1778230231000,-982.56191122,0.00011868,2]
[421853617,1778230231000,-300.0,0.00011867,2]
[421853626,1778230232000,-252.80804943,0.00011868,2]
[421853625,1778230232000,-640.337222,0.00011868,2]
[421853624,1778230232000,-587.06166618,0.00011868,2]
[421853631,1778230237000,-17443.92961298,0.00011868,2]
[421853632,1778230237000,-380.52932165,0.00011868,2]
[421853634,1778230238000,-4262.98751638,0.00011868,2]
[421853633,1778230238000,-901.39971266,0.00011868,2]
[421853716,1778230240000,-545.024,0.000142,2]
[421853720,1778230240000,-202.7575358,0.0001453,2]
[421853715,1778230240000,-5712.4131677,0.00014023,2]
[421853718,1778230240000,-2326.0,0.00014359,2]
[421853719,1778230240000,-922.825,0.00014483,2]
[421853721,1778230240000,-150.0,0.00014685,2]
[421853713,1778230240000,-250.0,0.00014,2]
[421853714,1778230240000,-190.8939483,0.00014023,2]
[421853717,1778230240000,-587.0,0.00014305,2]
[421853709,1778230240000,-200.0,0.00013902,2]
[421853711,1778230240000,-158.22,0.00013934,2]
[421853706,1778230240000,-2000.0,0.00013586,2]
[421853704,1778230240000,-500.0,0.00013434,2]
[421853690,1778230240000,-889.52874561,0.00011868,2]
[421853705,1778230240000,-1036.88345395,0.00013434,2]
[421853707,1778230240000,-1009.29,0.00013776,2]
[421853712,1778230240000,-200.0,0.00013982,2]
[421853701,1778230240000,-328.8436026,0.00013054,2]
[421853708,1778230240000,-173.23,0.00013864,2]
[421853702,1778230240000,-1680.0,0.00013054,2]
[421853703,1778230240000,-200.0,0.00013434,2]
[421853699,1778230240000,-152.11507395,0.00012869,2]
[421853697,1778230240000,-95821.26659339,0.00011868,2]
[421853698,1778230240000,-227.95016857,0.00012869,2]
[421853696,1778230240000,-399.631,0.00011868,2]
[421853694,1778230240000,-10999.8781,0.00011868,2]
[421853723,1778230240000,-500.0,0.00014685,2]
[421853700,1778230240000,-420.0,0.00013029,2]
[421853725,1778230240000,-500.0,0.00014685,2]
[421853695,1778230240000,-508.28615974,0.00011868,2]
[421853724,1778230240000,-500.0,0.00014685,2]
[421853722,1778230240000,-500.0,0.00014685,2]
[421853754,1778230240000,-1815.0,0.00014686,2]
[421853750,1778230240000,-500.0,0.00014685,2]
[421853752,1778230240000,-1815.0,0.00014686,2]
[421853751,1778230240000,-1815.0,0.00014686,2]
[421853749,1778230240000,-500.0,0.00014685,2]
[421853753,1778230240000,-1815.0,0.00014686,2]
[421853747,1778230240000,-500.0,0.00014685,2]
[421853748,1778230240000,-500.0,0.00014685,2]
[421853746,1778230240000,-500.0,0.00014685,2]
[421853745,1778230240000,-500.0,0.00014685,2]
[421853744,1778230240000,-500.0,0.00014685,2]
[421853742,1778230240000,-500.0,0.00014685,2]
[421853736,1778230240000,-500.0,0.00014685,2]
[421853739,1778230240000,-500.0,0.00014685,2]
[421853710,1778230240000,-212.73,0.00013922,2]
[421853738,1778230240000,-500.0,0.00014685,2]
[421853727,1778230240000,-500.0,0.00014685,2]
[421853740,1778230240000,-500.0,0.00014685,2]
[421853726,1778230240000,-500.0,0.00014685,2]
[421853729,1778230240000,-500.0,0.00014685,2]
[421853730,1778230240000,-500.0,0.00014685,2]
[421853728,1778230240000,-282.39672168,0.00014685,2]
[421853732,1778230240000,-500.0,0.00014685,2]
[421853733,1778230240000,-500.0,0.00014685,2]
[421853734,1778230240000,-500.0,0.00014685,2]
[421853741,1778230240000,-500.0,0.00014685,2]
[421853735,1778230240000,-500.0,0.00014685,2]
[421853743,1778230240000,-500.0,0.00014685,2]
[421853737,1778230240000,-500.0,0.00014685,2]
[421853731,1778230240000,-500.0,0.00014685,2]
[421853785,1778230241000,-500.0,0.0001496,2]
[421853778,1778230241000,-199.70780812,0.000149,2]
[421853782,1778230241000,-500.0,0.0001496,2]
[421853784,1778230241000,-500.0,0.0001496,2]
[421853790,1778230241000,-500.0,0.0001496,2]
[421853787,1778230241000,-515.95171291,0.0001496,2]
[421853783,1778230241000,-500.0,0.0001496,2]
[421853786,1778230241000,-500.0,0.0001496,2]
[421853792,1778230241000,-500.0,0.0001496,2]
[421853798,1778230241000,-500.0,0.0001496,2]
[421853788,1778230241000,-500.0,0.0001496,2]
[421853793,1778230241000,-500.0,0.0001496,2]
[421853794,1778230241000,-500.0,0.0001496,2]
[421853795,1778230241000,-500.0,0.0001496,2]
[421853796,1778230241000,-500.0,0.0001496,2]
[421853797,1778230241000,-500.0,0.0001496,2]
[421853800,1778230241000,-200.0,0.00014961,2]
[421853801,1778230241000,-200.0,0.00014961,2]
[421853805,1778230241000,-662.72,0.00014998,2]
[421853791,1778230241000,-500.0,0.0001496,2]
[421853775,1778230241000,-250.0,0.000148,2]
[421853770,1778230241000,-1815.0,0.00014686,2]
[421853774,1778230241000,-1815.0,0.00014686,2]
[421853757,1778230241000,-1815.0,0.00014686,2]
[421853756,1778230241000,-1815.0,0.00014686,2]
[421853755,1778230241000,-1815.0,0.00014686,2]
[421853758,1778230241000,-1815.0,0.00014686,2]
[421853759,1778230241000,-1815.0,0.00014686,2]
[421853760,1778230241000,-1815.0,0.00014686,2]
[421853761,1778230241000,-1815.0,0.00014686,2]
[421853763,1778230241000,-1815.0,0.00014686,2]
[421853764,1778230241000,-1815.0,0.00014686,2]
[421853765,1778230241000,-1815.0,0.00014686,2]
[421853776,1778230241000,-2500.0,0.00014861,2]
[421853766,1778230241000,-1815.0,0.00014686,2]
[421853762,1778230241000,-1815.0,0.00014686,2]
[421853767,1778230241000,-1815.0,0.00014686,2]
[421853769,1778230241000,-1815.0,0.00014686,2]
[421853781,1778230241000,-746.31145284,0.000149,2]
[421853771,1778230241000,-1815.0,0.00014686,2]
[421853803,1778230241000,-159.75641833,0.0001499,2]
[421853772,1778230241000,-1815.0,0.00014686,2]
[421853773,1778230241000,-1815.0,0.00014686,2]
[421853779,1778230241000,-1487.26502505,0.000149,2]
[421853777,1778230241000,-178.22350046,0.00014899,2]
[421853768,1778230241000,-1815.0,0.00014686,2]
[421853799,1778230241000,-1265.9198901,0.00014961,2]
[421853780,1778230241000,-216.30442264,0.000149,2]
[421853804,1778230241000,-500.0,0.00014998,2]
[421853834,1778230241000,-662.72,0.00014999,2]
[421853832,1778230241000,-662.72,0.00014999,2]
[421853833,1778230241000,-662.72,0.00014999,2]
[421853843,1778230241000,-500.0,0.00014999,2]
[421853835,1778230241000,-662.72,0.00014999,2]
[421853841,1778230241000,-500.0,0.00014999,2]
[421853837,1778230241000,-662.72,0.00014999,2]
[421853838,1778230241000,-662.72,0.00014999,2]
[421853840,1778230241000,-662.72,0.00014999,2]
[421853839,1778230241000,-662.72,0.00014999,2]
[421853831,1778230241000,-662.72,0.00014999,2]
[421853842,1778230241000,-500.0,0.00014999,2]
[421853844,1778230241000,-500.0,0.00014999,2]
[421853845,1778230241000,-500.0,0.00014999,2]
[421853847,1778230241000,-500.0,0.00014999,2]
[421853848,1778230241000,-500.0,0.00014999,2]
[421853846,1778230241000,-500.0,0.00014999,2]
[421853849,1778230241000,-506.67968673,0.00014999,2]
[421853850,1778230241000,-500.0,0.00014999,2]
[421853851,1778230241000,-500.0,0.00014999,2]
[421853852,1778230241000,-500.0,0.00014999,2]
[421853802,1778230241000,-200.0,0.00014961,2]
[421853836,1778230241000,-662.72,0.00014999,2]
[421853827,1778230241000,-662.72,0.00014999,2]
[421853789,1778230241000,-500.0,0.0001496,2]
[421853829,1778230241000,-662.72,0.00014999,2]